fUSD/lending_fUSD_20240601
["ID","MTS","AMOUNT","RATE_DAILY","PERIOD"]
[328363471,1717249839740,-500.0,0.00015342,2]
[328363473,1717249839751,-500.0,0.00015342,2]
[328363475,1717249839763,-500.0,0.00015342,2]
[328363478,1717249839775,-500.0,0.00015342,2]
[328363480,1717249839787,-500.0,0.00015342,2]
[328363481,1717249839800,-500.0,0.00015342,2]
[328363482,1717249839810,-500.0,0.00015342,2]
[328363483,1717249839820,-500.0,0.00015342,2]
[328363484,1717249839832,-500.0,0.00015342,2]
[328363485,1717249839843,-500.0,0.00015342,2]
[328363486,1717249839855,-500.0,0.00015342,2]
[328363487,1717249839866,-500.0,0.00015342,2]
[328363488,1717249839877,-500.0,0.00015342,2]
[328363489,1717249839888,-500.0,0.00015342,2]
[328363490,1717249839905,-500.0,0.00015342,2]
[328363491,1717249839917,-500.0,0.00015342,2]
[328363492,1717249839929,-500.0,0.00015342,2]
[328363493,1717249839941,-500.0,0.00015342,2]
[328363494,1717249839953,-500.0,0.00015342,2]
[328363495,1717249839965,-500.0,0.00015342,2]
[328363496,1717249839977,-500.0,0.00015342,2]
[328363497,1717249839990,-500.0,0.00015342,2]
[328363498,1717249840001,-500.0,0.00015342,2]
[328363499,1717249840012,-500.0,0.00015342,2]
[328363500,1717249840023,-500.0,0.00015342,2]
[328363501,1717249840035,-500.0,0.00015342,2]
[328363502,1717249840046,-500.0,0.00015342,2]
[328363503,1717249840058,-151.0,0.00015342,2]
[328363504,1717249840069,-172.61,0.00015608,2]
[328363505,1717249840081,-3645.46027187,0.00015655,2]
[328363506,1717249840095,-500.0,0.00015655,2]
[328363507,1717249840106,-500.0,0.00015655,2]
[328363508,1717249840117,-500.0,0.00015655,2]
[328363509,1717249840129,-500.0,0.00015655,2]
[328363510,1717249840140,-500.0,0.00015655,2]
[328363511,1717249840151,-500.0,0.00015655,2]
[328363512,1717249840163,-500.0,0.00015655,2]
[328363513,1717249840174,-500.0,0.00015655,2]
[328363514,1717249840185,-500.0,0.00015655,2]
[328363515,1717249840196,-500.0,0.00015655,2]
[328363516,1717249840207,-500.0,0.00015655,2]
[328363517,1717249840219,-500.0,0.00015655,2]
[328363518,1717249840231,-500.0,0.00015655,2]
[328363519,1717249840242,-500.0,0.00015655,2]
[328363520,1717249840253,-500.0,0.00015655,2]
[328363521,1717249840264,-500.0,0.00015655,2]
[328363522,1717249840276,-500.0,0.00015655,2]
[328363523,1717249840287,-500.0,0.00015655,2]
[328363524,1717249840298,-500.0,0.00015655,2]
[328363525,1717249840309,-500.0,0.00015655,2]
[328363526,1717249840320,-500.0,0.00015655,2]
[328363527,1717249840332,-500.0,0.00015655,2]
[328363528,1717249840343,-500.0,0.00015655,2]
[328363529,1717249840354,-500.0,0.00015655,2]
[328363530,1717249840365,-500.0,0.00015655,2]
[328363531,1717249840376,-500.0,0.00015655,2]
[328363532,1717249840387,-500.0,0.00015655,2]
[328363533,1717249840397,-500.0,0.00015655,2]
[328363534,1717249840409,-500.0,0.00015655,2]
[328363535,1717249840420,-500.0,0.00015655,2]
[328363536,1717249840431,-500.0,0.00015655,2]
[328363537,1717249840442,-500.0,0.00015655,2]
[328363538,1717249840453,-500.0,0.00015655,2]
[328363539,1717249840465,-500.0,0.00015655,2]
[328363540,1717249840475,-500.0,0.00015655,2]
[328363541,1717249840486,-500.0,0.00015655,2]
[328363542,1717249840497,-500.0,0.00015655,2]
[328363543,1717249840508,-500.0,0.00015655,2]
[328363544,1717249840519,-500.0,0.00015655,2]
[328363545,1717249840530,-500.0,0.00015655,2]
[328363546,1717249840540,-500.0,0.00015655,2]
[328363547,1717249840552,-500.0,0.00015655,2]
[328363548,1717249840563,-500.0,0.00015655,2]
[328363549,1717249840575,-500.0,0.00015655,2]
[328363550,1717249840586,-500.0,0.00015655,2]
[328363551,1717249840597,-500.0,0.00015655,2]
[328363552,1717249840608,-500.0,0.00015655,2]
[328363553,1717249840619,-500.0,0.00015655,2]
[328363554,1717249840630,-500.0,0.00015655,2]
[328363555,1717249840642,-500.0,0.00015655,2]
[328363556,1717249840653,-500.0,0.00015655,2]
[328363557,1717249840665,-500.0,0.00015655,2]
[328363558,1717249840676,-500.0,0.00015655,2]
[328363559,1717249840688,-500.0,0.00015655,2]
[328363560,1717249840698,-500.0,0.00015655,2]
[328363561,1717249840708,-500.0,0.00015655,2]
[328363562,1717249840718,-500.0,0.00015655,2]
[328363563,1717249840727,-500.0,0.00015655,2]
[328363564,1717249840917,-500.0,0.00015655,2]
[328363565,1717249840940,-500.0,0.00015655,2]
[328363566,1717249840949,-500.0,0.00015655,2]
[328363567,1717249840959,-500.0,0.00015655,2]
[328363568,1717249840969,-500.0,0.00015655,2]
[328363569,1717249840980,-500.0,0.00015655,2]
[328363570,1717249840990,-500.0,0.00015655,2]
[328363571,1717249841000,-500.0,0.00015655,2]
[328363572,1717249841009,-500.0,0.00015655,2]
[328363573,1717249841018,-500.0,0.00015655,2]
[328363574,1717249841027,-500.0,0.00015655,2]
[328363575,1717249841036,-500.0,0.00015655,2]
[328363576,1717249841046,-500.0,0.00015655,2]
[328363577,1717249841055,-500.0,0.00015655,2]
[328363578,1717249841064,-500.0,0.00015655,2]
[328363579,1717249841073,-500.0,0.00015655,2]
[328363580,1717249841083,-500.0,0.00015655,2]
[328363581,1717249841094,-500.0,0.00015655,2]
[328363582,1717249841104,-500.0,0.00015655,2]
[328363583,1717249841113,-500.0,0.00015655,2]
[328363584,1717249841122,-500.0,0.00015655,2]
[328363585,1717249841132,-500.0,0.00015655,2]
[328363586,1717249841141,-500.0,0.00015655,2]
[328363587,1717249841151,-500.0,0.00015655,2]
[328363588,1717249841160,-500.0,0.00015655,2]
[328363589,1717249841170,-500.0,0.00015655,2]
[328363590,1717249841179,-500.0,0.00015655,2]
[328363591,1717249841188,-500.0,0.00015655,2]
[328363592,1717249841197,-500.0,0.00015655,2]
[328363593,1717249841207,-500.0,0.00015655,2]
[328363594,1717249841218,-500.0,0.00015655,2]
[328363595,1717249841227,-500.0,0.00015655,2]
[328363596,1717249841236,-500.0,0.00015655,2]
[328363597,1717249841245,-500.0,0.00015655,2]
[328363598,1717249841254,-500.0,0.00015655,2]
[328363599,1717249841264,-500.0,0.00015655,2]
[328363600,1717249841272,-500.0,0.00015655,2]
[328363601,1717249841282,-500.0,0.00015655,2]
[328363602,1717249841292,-500.0,0.00015655,2]
[328363603,1717249841301,-500.0,0.00015655,2]
[328363604,1717249841310,-500.0,0.00015655,2]
[328363605,1717249841320,-500.0,0.00015655,2]
[328363606,1717249841329,-500.0,0.00015655,2]
[328363607,1717249841338,-500.0,0.00015655,2]
[328363608,1717249841347,-500.0,0.00015655,2]
[328363609,1717249841357,-500.0,0.00015655,2]
[328363610,1717249841366,-500.0,0.00015655,2]
[328363611,1717249841375,-500.0,0.00015655,2]
[328363612,1717249841385,-500.0,0.00015655,2]
[328363613,1717249841394,-500.0,0.00015655,2]
[328363614,1717249841404,-500.0,0.00015655,2]
[328363615,1717249841413,-500.0,0.00015655,2]
[328363616,1717249841423,-500.0,0.00015655,2]
[328363617,1717249841432,-500.0,0.00015655,2]
[328363618,1717249841441,-500.0,0.00015655,2]
[328363619,1717249841450,-500.0,0.00015655,2]
[328363620,1717249841461,-500.0,0.00015655,2]
[328363621,1717249841471,-500.0,0.00015655,2]
[328363622,1717249841480,-500.0,0.00015655,2]
[328363623,1717249841489,-500.0,0.00015655,2]
[328363624,1717249841499,-500.0,0.00015655,2]
[328363625,1717249841507,-500.0,0.00015655,2]
[328363626,1717249841517,-500.0,0.00015655,2]
[328363627,1717249841525,-500.0,0.00015655,2]
[328363628,1717249841535,-500.0,0.00015655,2]
[328363629,1717249841544,-500.0,0.00015655,2]
[328363630,1717249841553,-500.0,0.00015655,2]
[328363631,1717249841562,-500.0,0.00015655,2]
[328363632,1717249841571,-500.0,0.00015655,2]
[328363633,1717249841581,-500.0,0.00015655,2]
[328363634,1717249841590,-500.0,0.00015655,2]
[328363635,1717249841599,-500.0,0.00015655,2]
[328363636,1717249841607,-500.0,0.00015655,2]
[328363637,1717249841616,-500.0,0.00015655,2]
[328363638,1717249841625,-500.0,0.00015655,2]
[328363639,1717249841635,-500.0,0.00015655,2]
[328363640,1717249841644,-500.0,0.00015655,2]
[328363641,1717249841655,-500.0,0.00015655,2]
[328363642,1717249841664,-500.0,0.00015655,2]
[328363643,1717249841675,-500.0,0.00015655,2]
[328363644,1717249841684,-500.0,0.00015655,2]
[328363645,1717249841695,-500.0,0.00015655,2]
[328363646,1717249841704,-500.0,0.00015655,2]
[328363647,1717249841715,-500.0,0.00015655,2]
[328363648,1717249841724,-500.0,0.00015655,2]
[328363649,1717249841734,-151.0,0.00015655,2]
[328363650,1717249841744,-151.0,0.00015655,2]
[328363651,1717249841754,-151.0,0.00015655,2]
[328363652,1717249841763,-151.0,0.00015655,2]
[328363653,1717249841773,-1000.0,0.00015673,2]
[328363654,1717249841784,-167.0,0.00015831,2]
[328363655,1717249841794,-1100.0,0.000159,5]
[328363656,1717249841804,-5723.9,0.00016116,2]
[328363657,1717249841814,-2751.73518,0.0001631,2]
[328363658,1717249841823,-200.0,0.00016438,7]
[328363659,1717249841832,-150.0,0.00016438,2]
[328363660,1717249841842,-1888.52,0.00016438,2]
[328363661,1717249841851,-1886.77782089,0.000165,2]
[328363662,1717249841861,-504.9,0.00016532,2]
[328363663,1717249841870,-179.4,0.00016712,2]
[328363664,1717249841879,-201.064771,0.000169,2]
[328363665,1717249841890,-271.428432,0.00016973,2]
[328363666,1717249841904,-151.0,0.00016973,2]
[328363667,1717249841914,-151.0,0.00016973,2]
[328363668,1717249841923,-440.0,0.00016973,2]
[328363669,1717249841933,-1217.0,0.00016973,2]
[328363670,1717249841943,-1266.0,0.00016973,2]
[328363671,1717249841952,-614.0,0.00016973,2]
[328363672,1717249841962,-446.0,0.00016973,2]
[328363673,1717249841973,-797.0,0.00016973,2]
[328363674,1717249841982,-1117.0,0.00016973,2]
[328363675,1717249841992,-216.0,0.00016973,2]
[328363676,1717249842001,-3169.0,0.00016973,2]
[328363677,1717249842010,-543.0,0.00016973,2]
[328363678,1717249842020,-37980.0,0.00016973,2]
[328363679,1717249842029,-965.308,0.00016973,2]
[328363680,1717249842039,-150.0,0.00016973,2]
[328363681,1717249842048,-1000.0,0.00017098,2]
[328363682,1717249842057,-932.46,0.00017121,2]
[328363683,1717249842067,-177.438,0.00017224,2]
[328363684,1717249842077,-19859.04337561,0.00017225,2]
[328363685,1717249842086,-500.0,0.00017225,2]
[328363686,1717249842097,-500.0,0.00017225,2]
[328363687,1717249842106,-3645.46027187,0.00017409,2]
[328363688,1717249842115,-167.0,0.00018444,2]
[328363689,1717249842125,-153.75932063,0.00018725,2]
[328363690,1717249842134,-504.9,0.00018796,2]
[328363691,1717249842143,-2751.73519,0.0001881,2]
[328363692,1717249842152,-3645.46027187,0.00019164,2]
[328363693,1717249842162,-500.0,0.00019178,2]
[328363695,1717249842171,-236.20903743,0.00019178,2]
[328363696,1717249842182,-603.17037463,0.00019178,2]
[328363697,1717249842191,-500.0,0.00019178,2]
[328363698,1717249842200,-293.84868747,0.00019178,2]
[328363699,1717249842210,-258.50158912,0.00019178,2]
[328363700,1717249842220,-301.35,0.00019178,2]
[328363701,1717249842229,-5422.6440921,0.000192,2]
[328363702,1717249842246,-2342.83369249,0.000192,2]
[328363703,1717249842255,-151.0,0.000192,2]
[328363704,1717249842263,-152.06,0.00019589,2]
[328363705,1717249842273,-150.0,0.00019589,2]
[328363706,1717249842282,-150.0,0.00019589,2]
[328363707,1717249842291,-4097.02630751,0.000198,2]
[328363709,1717249842308,-2398.17145525,0.000198,2]
[328363711,1717249842317,-261.7249779,0.000198,2]
[328363713,1717249842327,-262.87572692,0.000198,2]
[328363714,1717249842336,-662.44968041,0.000198,2]
[328363715,1717249842346,-1810.8327231,0.000198,2]
[328363716,1717249842355,-150.95,0.0001989,2]
[328363717,1717249842366,-3311.60416017,0.000199,3]
[328363718,1717249842376,-2001.55,0.000199,2]
[328363719,1717249842385,-1375.16,0.000199,2]
[328363720,1717249842396,-289.263838,0.000199,2]
[328363721,1717249842407,-256.781942,0.00019973,2]
[328363722,1717249842417,-440.0,0.00019973,2]
[328363723,1717249842427,-918.655,0.00019973,2]
[328363724,1717249842436,-162.311,0.00019973,2]
[328363725,1717249842446,-340.869,0.00019973,2]
[328363726,1717249842455,-686.286,0.00019973,2]
[328363727,1717249842464,-3864.867,0.00019973,2]
[328363728,1717249842474,-200.0,0.0002,2]
[328363729,1717249842483,-257.5929249,0.0002,2]
[328363730,1717249842492,-812.0226048,0.0002,2]
[328363731,1717249842501,-291.61672782,0.0002,2]
[328363732,1717249842511,-3439.78804131,0.0002,2]
[328363733,1717249842520,-344.0,0.0002,2]
[328363734,1717249842529,-187.23602393,0.0002,2]
[328363735,1717249842539,-155.36720455,0.0002,2]
[328363736,1717249842548,-150.0,0.0002,2]
[328363737,1717249842557,-1000.0,0.0002,2]
[328363738,1717249842567,-1453.0,0.000207,2]
[328363739,1717249842575,-590.0,0.000207,2]
[328363740,1717249842585,-151.0,0.00020918,2]
[328363741,1717249842594,-3645.46027187,0.00020918,2]
[328363742,1717249842604,-504.9,0.0002106,2]
[328363743,1717249842614,-2751.73518,0.0002131,2]
[328363744,1717249842623,-201.06477096,0.00021475,2]
[328363745,1717249842632,-150.0,0.00021917,2]
[328363746,1717249842641,-300.0,0.00021917,2]
[328363747,1717249842650,-450.0,0.00021917,2]
[328363748,1717249842660,-600.0,0.00021917,2]
[328363749,1717249842669,-750.0,0.00021917,2]
[328363750,1717249842679,-900.8301525,0.00021917,2]
[328363751,1717249842688,-250.0,0.00021918,2]
[328363752,1717249842697,-151.0,0.00021918,2]
[328363753,1717249842707,-151.0,0.00021918,2]
[328363754,1717249842716,-151.0,0.00021918,2]
[328363755,1717249842725,-151.0,0.00021918,2]
[328363756,1717249842734,-151.0,0.00021918,2]
[328363757,1717249842743,-151.0,0.00021918,2]
[328363758,1717249842752,-151.0,0.00021918,2]
[328363759,1717249842761,-151.0,0.00021918,2]
[328363760,1717249842771,-151.0,0.00021918,2]
[328363761,1717249842780,-151.0,0.00021918,2]
[328363762,1717249842790,-151.0,0.00021918,2]
[328363763,1717249842799,-151.0,0.00021918,2]
[328363764,1717249842809,-151.0,0.00021918,2]
[328363765,1717249842819,-151.686371,0.00021918,2]
[328363766,1717249842828,-151.0,0.00021918,2]
[328363767,1717249842837,-151.0,0.00021918,2]
[328363768,1717249842847,-169.67,0.00021918,2]
[328363769,1717249842856,-121.16722261,0.00021918,2]
[328363770,1717249842870,-29.83277739,0.00021918,2]
[328363771,1717249842879,-151.0,0.00021918,2]
[328363772,1717249842889,-129.40732966,0.00021918,2]
[328363773,1717249842905,-160.89484034,0.00021918,2]
[328363774,1717249842914,-300.71764631,0.00022238,2]
[328363775,1717249842925,-199.28235369,0.00022238,2]
[328363776,1717249842934,-114.15195547,0.00022238,2]
[328363777,1717249842946,-1285.84804453,0.00022238,2]
[328363778,1717249842955,-700.0,0.00022238,2]
[328363779,1717249842966,-2900.0,0.00022238,2]
[328363780,1717249842975,-2900.0,0.00022238,2]
[328363781,1717249842986,-3645.46027187,0.00022673,2]
[328363782,1717249842996,-1400.0,0.00022786,2]
[328363783,1717249843006,-700.0,0.00022786,2]
[328363784,1717249843015,-500.0,0.00022786,2]
[328363785,1717249843024,-2900.0,0.00022786,2]
[328363786,1717249843033,-2900.0,0.00022786,2]
[328363787,1717249843042,-262.0,0.00022795,2]
[328363788,1717249843052,-753.57815935,0.00022886,2]
[328363789,1717249843061,-2955.22036203,0.000229,5]
[328363790,1717249843107,-432.3545055,0.000229,5]
[328363791,1717249843121,-28223.15069017,0.000229,5]
[328363792,1717249843131,-500.0,0.000229,7]
[328363793,1717249843140,-500.0,0.000229,7]
[328363794,1717249843150,-155.0,0.00023,2]
[328363795,1717249843160,-149079.21463383,0.00023,2]
[328363796,1717249843169,-150.31687728,0.00023,2]
[328363797,1717249843179,-500.0,0.00023,7]
[328363798,1717249843188,-500.0,0.00023,7]
[328363799,1717249843197,-500.0,0.00023,7]
[328363800,1717249843206,-500.0,0.00023,7]
[328363801,1717249843216,-151.0,0.00023,7]
[328363802,1717249843226,-151.0,0.00023,7]
[328363803,1717249843235,-504.9,0.00023324,2]
[328363804,1717249843245,-1400.0,0.00023334,2]
[328363805,1717249843254,-700.0,0.00023334,2]
[328363806,1717249843264,-2900.0,0.00023334,2]
[328363807,1717249843274,-2900.0,0.00023334,2]
[328363809,1717249843283,-1375.16,0.000234,2]
[328363813,1717249843293,-2001.55,0.000234,2]
[328363815,1717249843303,-93.3851818,0.0002355,2]
[328363817,1717249843315,-60.37413883,0.0002355,2]
[328363818,1717249843325,-867.2127167,0.0002381,2]
[328363819,1717249843337,-1884.5224733,0.0002381,2]
[328363820,1717249843346,-600.0,0.0002384,2]
[328363821,1717249843356,-204.5394264,0.00023846,2]
[328363822,1717249843368,-344.01348236,0.00023846,2]
[328363823,1717249843377,-278.20635171,0.00023882,2]
[328363824,1717249843389,-221.79364829,0.00023882,2]
[328363825,1717249843399,-679.58354025,0.00023882,2]
[328363826,1717249843411,-255.9999999,0.00023882,2]
[328363828,1717249843429,-464.41645985,0.00023882,2]
[328363830,1717249843438,-700.0,0.00023882,2]
[328363832,1717249843447,-247.89318421,0.00023882,2]
[328363835,1717249843666,-151.0,0.00014,2]
[328363836,1717249843677,-151.0,0.00014,2]
[328363837,1717249843687,-105.88234205,0.00014,2]
[328363838,1717249843699,-229.35917395,0.00014,2]
[328363839,1717249843709,-335.241516,0.00014,2]
[328363840,1717249843719,-276.247366,0.00015,2]
[328363841,1717249843729,-335.241516,0.00015,2]
[328363842,1717249843738,-2652.10681579,0.00023882,2]
[328363843,1717249843748,-2805.23071226,0.00023882,2]
[328363844,1717249843759,-94.76928774,0.00023882,2]
[328363845,1717249843770,-186.41745426,0.00024,2]
[328363846,1717249843794,-335.241516,0.00015655,2]
[328363847,1717249843804,-45.47348401,0.00024,2]
[328363848,1717249843815,-241.44591006,0.00024,2]
[328363849,1717249843825,-433.9343719,0.00024,2]
[328363850,1717249843835,-6146.29669781,0.00024,3]
[328363851,1717249843844,-180.0,0.0002423,2]
[328363852,1717249843854,-156.76,0.00024384,2]
[328363853,1717249843863,-158.96,0.00024384,2]
[328363854,1717249843872,-156.53,0.00024384,2]
[328363855,1717249843883,-176.58,0.00024384,2]
[328363856,1717249843894,-3645.46027187,0.00024427,2]
[328363859,1717249844044,-247.0,0.0002445,2]
[328363860,1717249844054,-291.0,0.0002445,2]
[328363861,1717249844063,-6215.23000674,0.000245,2]
[328363862,1717249844076,-253.44497898,0.000245,2]
[328363863,1717249844088,-345.91147168,0.000245,2]
[328363864,1717249844100,-4615.48261927,0.000245,2]
[328363865,1717249844159,-335.241516,0.000192,2]
[328363866,1717249844168,-335.241516,0.000199,2]
[328363867,1717249844178,-7983.07533538,0.000245,2]
[328363868,1717249844188,-151.301701,0.00024658,7]
[328363869,1717249844199,-151.0,0.00024658,7]
[328363870,1717249844208,-151.0,0.00024658,7]
[328363871,1717249844219,-151.0,0.00024658,7]
[328363872,1717249844229,-151.0,0.00024658,7]
[328363873,1717249844238,-1252.81543831,0.00024798,11]
[328363874,1717249844253,-4364.5127787,0.00024798,11]
[328363875,1717249844265,-39224.19838232,0.00024798,11]
[328363876,1717249844281,-1087.29,0.00024798,11]
[328363877,1717249844293,-5647.50256487,0.00024798,11]
[328363878,1717249844305,-1841.28543829,0.00024798,11]
[328363879,1717249844316,-8764.35232841,0.00024798,11]
[328363880,1717249844389,-335.241516,0.00023,7]
[328363881,1717249844399,-659.28866238,0.00024798,11]
[328363882,1717249844425,-335.241516,0.00014,2]
[328363883,1717249844435,-1128.28166522,0.00024798,11]
[328363884,1717249844447,-164173.38865806,0.00024798,11]
[328363885,1717249844459,-6444.20631449,0.00024798,11]
[328363886,1717249844471,-17139.45954553,0.00024798,11]
[328363935,1717249846766,-335.241516,0.00014,2]
[328363936,1717249846776,-335.241516,0.00015,2]
[328363937,1717249846785,-335.241516,0.00015655,2]
[328363938,1717249846794,-335.241516,0.000192,2]
[328363939,1717249846804,-335.241516,0.000199,2]
[328363940,1717249846813,-153.2385097,0.000229,2]
[328363941,1717249846823,-335.241516,0.00023,7]
[328363942,1717249846833,-3449.5041635,0.00024798,11]
[328363943,1717249846845,-6952.95696847,0.00024798,11]
[328363944,1717249846858,-2042.47404241,0.00024798,11]
[328363947,1717249885561,25000.0,0.00034833,30]
[328363948,1717249975116,50000.0,0.00031,30]
[328363950,1717250013789,25000.0,0.00034833,30]
[328363952,1717250092905,50000.0,0.00031,30]
[328363953,1717250140869,153.61,0.00029808,30]
[328363954,1717250185931,25000.0,0.00034833,30]
[328363955,1717250204544,50000.0,0.00031,30]
[328363956,1717250209521,185.79764512,0.0001,3]
[328363957,1717250214810,25000.0,0.00034833,30]
[328363958,1717250231979,50000.0,0.00031,30]
[328363959,1717250250148,25000.0,0.00034833,30]
[328363960,1717250334703,5000.0,0.00034833,120]
[328363970,1717250690173,153.61,0.00029808,30]
[328363971,1717250736174,-241.25864268,0.00013496,2]
[328363972,1717250736195,-588.99337165,0.00013497,2]
[328363976,1717250832102,-2608.8821037,0.00013227,2]
[328363977,1717250832122,-618.96279322,0.00013497,2]
[328363978,1717250832142,-529.6006328,0.00013499,2]
[328363979,1717250832161,-1000.0,0.000135,2]
[328363980,1717250832180,-241.25864268,0.00014238,2]
[328363981,1717250832199,-3713.215,0.00014238,2]
[328363982,1717250832221,-3012.65446756,0.00014848,2]
[328363989,1717251031877,-241.25864268,0.00013226,2]
[328363990,1717251031887,-2715.58845078,0.00013227,2]
[328363991,1717251031897,-1379.80790862,0.00014848,2]
[328363992,1717251031908,-3511.94867098,0.00014848,2]
[328364038,1717251038452,-297.14459742,0.00014848,2]
[328364039,1717251038545,-335.74528217,0.00014848,2]
[328364040,1717251038612,-300.001004,0.00014848,2]
[328364047,1717251038808,-97.00414838,0.00014848,2]
[328364054,1717251042952,-34051.86509838,0.00014848,2]
[328364055,1717251042962,-3508.52823718,0.00014849,2]
[328364056,1717251042971,-3649.52,0.00014858,2]
[328364057,1717251042980,-302.65144367,0.00015,2]
[328364058,1717251042990,-620.13052654,0.00015,2]
[328364059,1717251042999,-1803.30077465,0.000165,2]
[328364060,1717251043008,-1153.32461863,0.00017534,2]
[328364061,1717251043135,-423.96701383,0.00017534,2]
[328364062,1717251043147,-47.79836754,0.00017534,2]
[328364063,1717251043158,-500.0,0.00019096,2]
[328364064,1717251043168,-353.43,0.00020494,2]
[328364065,1717251043177,-169.67,0.00021918,2]
[328364066,1717251043187,-262.32,0.00022003,2]
[328364067,1717251043197,-250.0,0.00022034,2]
[328364068,1717251043207,-250.0,0.00022149,2]
[328364069,1717251043217,-1000.0,0.00022238,2]
[328364070,1717251043226,-600.0,0.00022238,2]
[328364071,1717251043235,-500.0,0.00022238,2]
[328364072,1717251043245,-1000.0,0.0002254,2]
[328364073,1717251043255,-353.43,0.00022758,2]
[328364074,1717251043264,-600.0,0.00022786,2]
[328364075,1717251043274,-1000.0,0.00022786,2]
[328364076,1717251043284,-175.0,0.00023,2]
[328364077,1717251043294,-500.0,0.00023224,2]
[328364078,1717251043303,-500.0,0.00023334,2]
[328364079,1717251043313,-1000.0,0.00023334,2]
[328364080,1717251043323,-600.0,0.00023334,2]
[328364081,1717251043332,-300.0,0.00023799,2]
[328364082,1717251043341,-371.59315978,0.0002381,2]
[328364083,1717251043351,-6806.21801821,0.0002381,2]
[328364084,1717251043363,-3883.96437989,0.0002381,2]
[328364085,1717251043386,-6858.2516019,0.0002381,2]
[328364086,1717251043396,-2200.0,0.00023882,2]
[328364087,1717251043405,-1000.0,0.00023882,2]
[328364088,1717251043414,-433.9343719,0.00024,2]
[328364089,1717251043424,-150.31687828,0.00024,2]
[328364090,1717251043433,-458.62253,0.0002425,2]
[328364091,1717251043443,-182.34832825,0.00024254,2]
[328364092,1717251043452,-156.76,0.00024384,2]
[328364093,1717251043462,-158.96,0.00024384,2]
[328364094,1717251043471,-2200.0,0.0002443,2]
[328364095,1717251043481,-500.0,0.0002443,2]
[328364096,1717251043491,-600.0,0.0002443,2]
[328364097,1717251043502,-2166.6333,0.00024683,2]
[328364098,1717251043514,-9682.5093,0.00024715,2]
[328364099,1717251043524,-25132.112,0.00024716,2]
[328364100,1717251043534,-1233.838,0.00024716,2]
[328364101,1717251043545,-262.32,0.00024754,2]
[328364102,1717251043554,-4587.699283,0.00024783,2]
[328364103,1717251043564,-3676.7242694,0.00024783,2]
[328364104,1717251043573,-22010.67980423,0.00024783,2]
[328364105,1717251043587,-300.0,0.00024783,2]
[328364106,1717251043599,-4130.16,0.00024783,2]
[328364107,1717251043661,-441.47992824,0.00024783,2]
[328364108,1717251043673,-2664.5482046,0.00024783,2]
[328364110,1717251043696,-598.38756296,0.00024783,2]
[328364113,1717251043901,-15458.27716527,0.00024783,2]
[328364114,1717251043911,-300.0,0.00024791,2]
[328364115,1717251043920,-475.13281641,0.00024796,2]
[328364116,1717251043930,-155.48523332,0.00024796,2]
[328364117,1717251043939,-233.43894078,0.00024796,2]
[328364118,1717251043949,-186.83724353,0.00024797,2]
[328364119,1717251043958,-4061.40222579,0.00024799,2]
[328364121,1717251043968,-4325.24463895,0.000248,2]
[328364131,1717251045850,-2e-08,0.00014773,2]
[328364132,1717251046064,-1207.32223898,0.00014773,2]